[Event "Régional Jeunes Occitanie 2024"]
[Site "L'Isle Jourdain, France"]
[Date "2024.02.21"]
[Round "2.5"]
[White "THIRION RUTYNA, Lena"]
[Black "DUCOS, Antonios"]
[Result "1-0"]
[TimeControl "1h30 + 30s/cps"]
[WhiteElo "1273"]
[BlackElo "1544"]

1. e4 {[%clk 01:30:56]} {[%emt 00:00:03]} e5 {[%clk 01:30:52]} {[%emt
00:00:08]} 2. Nf3 {[%clk 01:31:21]} {[%emt 00:00:06]} Nc6 {[%clk 01:31:01]}
{[%emt 00:00:22]} 3. Nc3 {[%clk 01:31:46]} {[%emt 00:00:05]} Nf6 {[%clk
01:31:03]} {[%emt 00:00:27]} 4. d4 {[%clk 01:32:08]} {[%emt 00:00:08]} exd4
{[%clk 01:31:10]} {[%emt 00:00:23]} 5. Nxd4 {[%clk 01:32:29]} {[%emt 00:00:09]}
Bb4 {[%clk 01:28:37]} {[%emt 00:03:03]} 6. Nxc6 {[%clk 01:32:48]} {[%emt
00:00:12]} dxc6 {[%clk 01:22:16]} {[%emt 00:06:50]} 7. Qxd8+ {[%clk 01:32:34]}
{[%emt 00:00:45]} Kxd8 {[%clk 01:22:43]} {[%emt 00:00:03]} 8. Bg5 {[%clk
01:32:46]} {[%emt 00:00:18]} h6 {[%clk 01:21:11]} {[%emt 00:02:01]} 9. Bxf6+
{[%clk 01:32:41]} {[%emt 00:00:36]} gxf6 {[%clk 01:21:38]} {[%emt 00:00:02]} 10.
O-O-O+ {[%clk 01:32:51]} {[%emt 00:00:20]} Ke7 {[%clk 01:20:37]} {[%emt
00:01:31]} 11. Ne2 {[%clk 01:31:06]} {[%emt 00:02:16]} f5 {[%clk 01:18:30]}
{[%emt 00:02:36]} 12. exf5 {[%clk 01:30:05]} {[%emt 00:01:31]} Bxf5 {[%clk
01:18:03]} {[%emt 00:00:57]} 13. Nd4 {[%clk 01:30:00]} {[%emt 00:00:36]} Bg6
{[%clk 01:12:04]} {[%emt 00:06:27]} 14. Bd3 {[%clk 01:28:04]} {[%emt 00:02:27]}
Rhe8 {[%clk 01:00:22]} {[%emt 00:12:10]} 15. c3 {[%clk 01:26:32]} {[%emt
00:02:04]} Bd6 {[%clk 00:58:05]} {[%emt 00:02:46]} 16. Rhe1+ {[%clk 01:26:03]}
{[%emt 00:00:59]} Kf6 {[%clk 00:54:07]} {[%emt 00:04:28]} 17. Bxg6 {[%clk
01:19:31]} {[%emt 00:07:02]} fxg6 {[%clk 00:53:36]} {[%emt 00:01:01]} 18. Nf3
{[%clk 01:15:25]} {[%emt 00:04:36]} Bc5 {[%clk 00:39:21]} {[%emt 00:14:44]} 19.
Rd7 {[%clk 01:11:51]} {[%emt 00:04:06]} Rxe1+ {[%clk 00:38:28]} {[%emt
00:01:23]} 20. Nxe1 {[%clk 01:12:09]} {[%emt 00:00:12]} Bxf2 {[%clk 00:37:44]}
{[%emt 00:01:14]} 21. Nf3 {[%clk 01:10:41]} {[%emt 00:01:58]} Be3+ {[%clk
00:37:16]} {[%emt 00:00:58]} 22. Nd2 {[%clk 01:10:20]} {[%emt 00:00:52]} Bf4
{[%clk 00:26:12]} {[%emt 00:11:34]} 23. g3 {[%clk 01:08:22]} {[%emt 00:02:28]}
Ke6 {[%clk 00:24:25]} {[%emt 00:02:17]} 24. Rg7 {[%clk 01:07:43]} {[%emt
00:01:07]} Bg5 {[%clk 00:10:34]} {[%emt 00:14:23]} 25. Kc2 {[%clk 01:06:31]}
{[%emt 00:01:42]} Kf5 {[%clk 00:06:09]} {[%emt 00:04:55]} 26. Rxc7 {[%clk
01:05:15]} {[%emt 00:01:46]} Rb8 {[%clk 00:05:12]} {[%emt 00:01:27]} 27. h3
{[%clk 01:02:43]} {[%emt 00:03:02]} Bf6 {[%clk 00:04:00]} {[%emt 00:01:43]} 28.
Nc4 {[%clk 01:01:20]} {[%emt 00:01:52]} Ke4 {[%clk 00:03:39]} {[%emt 00:00:51]}
29. Rf7 {[%clk 01:00:41]} {[%emt 00:01:09]} Bd8 {[%clk 00:02:10]} {[%emt
00:01:59]} 30. Nd6+ {[%clk 00:58:03]} {[%emt 00:03:08]} Ke5 {[%clk 00:01:53]}
{[%emt 00:00:47]} 31. Nxb7 {[%clk 00:56:52]} {[%emt 00:01:40]} Ke6 {[%clk
00:02:22]} {[%emt 00:00:01]} 32. Nxd8+ {[%clk 00:56:28]} {[%emt 00:00:54]} Rxd8
{[%clk 00:02:51]} {[%emt 00:00:02]} 33. Rg7 {[%clk 00:56:12]} {[%emt 00:00:46]}
Kf5 {[%clk 00:02:02]} {[%emt 00:01:20]} 34. Rxa7 {[%clk 00:55:50]} {[%emt
00:00:51]} Ke5 {[%clk 00:00:31]} {[%emt 00:02:01]} 35. Rg7 {[%clk 00:54:21]}
{[%emt 00:01:57]} Rd6 {[%clk 00:01:00]} {[%emt 00:00:03]} 36. Rf7 {[%clk
00:53:35]} {[%emt 00:01:14]} Ke4 {[%clk 00:01:29]} {[%emt 00:00:03]} 37. a4
{[%clk 00:53:18]} {[%emt 00:00:47]} Rd5 {[%clk 00:01:58]} 38. Rf6 {[%clk
00:52:50]} {[%emt 00:00:58]} Rg5 {[%clk 00:02:04]} {[%emt 00:00:25]} 39. g4
{[%clk 00:52:59]} {[%emt 00:00:21]} Ke5 {[%clk 00:01:03]} {[%emt 00:01:32]} 40.
Rxc6 {[%clk 00:53:07]} {[%emt 00:00:21]} Kf4 {[%clk 00:01:31]} 41. Rd6 {[%clk
00:53:00]} {[%emt 00:00:37]} 1-0

[Event "Régional Jeunes Occitanie 2024"]
[Site "L'Isle Jourdain, France"]
[Date "2024.02.21"]
[Round "2.8"]
[White "AZZI, Yanis"]
[Black "MARTINEZ, Julien"]
[Result "0-1"]
[TimeControl "1h30 + 30s/cps"]
[WhiteElo "1142"]
[BlackElo "1556"]

1. e4 {[%clk 01:30:58]} {[%emt 00:00:01]} c6 {[%clk 01:30:58]} {[%emt
00:00:03]} 2. Nf3 {[%clk 01:30:46]} {[%emt 00:00:42]} d5 {[%clk 01:31:16]}
{[%emt 00:00:12]} 3. exd5 {[%clk 01:29:58]} {[%emt 00:01:18]} cxd5 {[%clk
01:31:35]} {[%emt 00:00:12]} 4. Nc3 {[%clk 01:30:17]} {[%emt 00:00:11]} Nc6
{[%clk 01:31:54]} {[%emt 00:00:10]} 5. d4 {[%clk 01:30:25]} {[%emt 00:00:22]}
Nf6 {[%clk 01:32:07]} {[%emt 00:00:17]} 6. Bf4 {[%clk 01:30:21]} {[%emt
00:00:33]} Bf5 {[%clk 01:32:12]} {[%emt 00:00:26]} 7. Bd3 {[%clk 01:30:18]}
{[%emt 00:00:33]} Bxd3 {[%clk 01:32:18]} {[%emt 00:00:24]} 8. Qxd3 {[%clk
01:30:36]} {[%emt 00:00:12]} e6 {[%clk 01:32:41]} {[%emt 00:00:07]} 9. a3
{[%clk 01:30:28]} {[%emt 00:00:38]} Bd6 {[%clk 01:32:54]} {[%emt 00:00:17]} 10.
Ne5 {[%clk 01:27:52]} {[%emt 00:03:06]} Qc7 {[%clk 01:31:43]} {[%emt 00:01:41]}
11. Nb5 {[%clk 01:27:21]} {[%emt 00:01:01]} Qa5+ {[%clk 01:30:55]} {[%emt
00:01:18]} 12. c3 {[%clk 01:26:51]} {[%emt 00:01:00]} Be7 {[%clk 01:31:02]}
{[%emt 00:00:23]} 13. Bd2 {[%clk 01:25:47]} {[%emt 00:01:34]} Qd8 {[%clk
01:30:24]} {[%emt 00:01:09]} 14. O-O {[%clk 01:23:40]} {[%emt 00:02:37]} a6
{[%clk 01:30:39]} {[%emt 00:00:15]} 15. a4 {[%clk 01:21:55]} {[%emt 00:02:15]}
axb5 {[%clk 01:30:18]} {[%emt 00:00:51]} 16. Qxb5 {[%clk 01:22:07]} {[%emt
00:00:17]} Qc7 {[%clk 01:28:34]} {[%emt 00:02:14]} 17. a5 {[%clk 01:21:37]}
{[%emt 00:01:00]} Ra6 {[%clk 01:26:00]} {[%emt 00:03:04]} 18. Nd3 {[%clk
01:19:50]} {[%emt 00:02:17]} O-O {[%clk 01:24:52]} {[%emt 00:01:38]} 19. Bf4
{[%clk 01:19:55]} {[%emt 00:00:25]} Qc8 {[%clk 01:23:47]} {[%emt 00:01:35]} 20.
Nc5 {[%clk 01:19:22]} {[%emt 00:01:03]} Bxc5 {[%clk 01:22:05]} {[%emt
00:02:13]} 21. dxc5 {[%clk 01:19:15]} {[%emt 00:00:37]} Ne4 {[%clk 01:18:50]}
{[%emt 00:03:46]} 22. b4 {[%clk 01:19:05]} {[%emt 00:00:40]} Nxc3 {[%clk
01:14:02]} {[%emt 00:05:17]} 23. Qd3 {[%clk 01:19:09]} {[%emt 00:00:25]} Ne4
{[%clk 01:14:21]} {[%emt 00:00:12]} 24. b5 {[%clk 01:18:57]} {[%emt 00:00:41]}
Rxa5 {[%clk 01:13:52]} {[%emt 00:00:59]} 25. bxc6 {[%clk 01:18:43]} {[%emt
00:00:45]} Rxa1 {[%clk 01:14:05]} {[%emt 00:00:17]} 26. Rxa1 {[%clk 01:18:31]}
{[%emt 00:00:41]} Qxc6 {[%clk 01:14:06]} {[%emt 00:00:29]} 27. Rc1 {[%clk
01:17:22]} {[%emt 00:01:39]} b6 {[%clk 01:10:40]} {[%emt 00:03:56]} 28. Be3
{[%clk 01:16:02]} {[%emt 00:01:50]} bxc5 {[%clk 01:10:26]} {[%emt 00:00:44]} 29.
Qe2 {[%clk 01:14:51]} {[%emt 00:01:40]} e5 {[%clk 01:04:20]} {[%emt 00:06:37]}
30. Qg4 {[%clk 01:13:57]} {[%emt 00:01:22]} f5 {[%clk 01:03:11]} {[%emt
00:01:41]} 31. Qe2 {[%clk 01:12:51]} {[%emt 00:01:34]} f4 {[%clk 01:03:27]}
{[%emt 00:00:16]} 32. Bd2 {[%clk 01:12:17]} {[%emt 00:01:01]} Nxd2 {[%clk
01:03:24]} {[%emt 00:00:35]} 33. Qxd2 {[%clk 01:11:39]} {[%emt 00:01:08]} d4
{[%clk 01:00:59]} {[%emt 00:02:56]} 34. Qa2+ {[%clk 01:10:58]} {[%emt
00:01:10]} Kh8 {[%clk 01:01:09]} {[%emt 00:00:19]} 35. Qb2 {[%clk 01:10:39]}
{[%emt 00:00:50]} f3 {[%clk 01:01:17]} {[%emt 00:00:22]} 36. Rb1 {[%clk
01:10:09]} {[%emt 00:01:01]} Qc7 {[%clk 01:00:45]} {[%emt 00:01:02]} 37. gxf3
{[%clk 01:09:48]} {[%emt 00:00:50]} h6 {[%clk 01:00:31]} {[%emt 00:00:43]} 38.
Qc2 {[%clk 01:09:35]} {[%emt 00:00:44]} Rxf3 {[%clk 00:59:37]} {[%emt
00:01:24]} 39. Qe2 {[%clk 01:09:11]} {[%emt 00:00:54]} Rf6 {[%clk 00:59:08]}
{[%emt 00:01:00]} 40. h4 {[%clk 01:08:21]} {[%emt 00:01:20]} c4 {[%clk
00:55:12]} {[%emt 00:04:26]} 41. Ra1 {[%clk 01:07:26]} {[%emt 00:01:24]} Qc6
{[%clk 00:55:23]} {[%emt 00:00:19]} 42. Rc1 {[%clk 01:05:24]} {[%emt 00:02:32]}
Rg6+ {[%clk 00:55:44]} {[%emt 00:00:10]} 43. Kf1 {[%clk 01:03:34]} {[%emt
00:02:19]} Qh1# {[%emt 00:04:52]} 0-1

[Event "Régional Jeunes Occitanie 2024"]
[Site "L'Isle Jourdain, France"]
[Date "2024.02.21"]
[Round "2.7"]
[White "BAUER, Pierre"]
[Black "VARDANYAN, Helene"]
[Result "1-0"]
[TimeControl "1h30 + 30s/cps"]
[WhiteElo "1765"]
[BlackElo "1154"]

1. c4 {[%clk 01:30:46]} {[%emt 00:00:13]} e5 {[%clk 01:30:33]} {[%emt
00:00:27]} 2. Nc3 {[%clk 01:31:01]} {[%emt 00:00:15]} Nf6 {[%emt 00:00:52]} 3.
g3 {[%clk 01:31:15]} {[%emt 00:00:15]} Bb4 {[%clk 01:29:27]} {[%emt 00:01:15]}
4. Bg2 {[%clk 01:29:36]} {[%emt 00:02:08]} O-O {[%clk 01:26:50]} {[%emt
00:03:08]} 5. Qb3 {[%clk 01:26:29]} {[%emt 00:03:37]} Bxc3 {[%clk 01:22:48]}
{[%emt 00:04:32]} 6. Qxc3 {[%clk 01:26:48]} {[%emt 00:00:11]} Re8 {[%clk
01:19:46]} {[%emt 00:03:32]} 7. d3 {[%clk 01:25:44]} {[%emt 00:01:33]} h6
{[%clk 01:14:50]} {[%emt 00:05:27]} 8. e3 {[%clk 01:22:57]} {[%emt 00:03:16]}
d5 {[%clk 01:09:27]} {[%emt 00:05:54]} 9. Ne2 {[%clk 01:21:40]} {[%emt
00:01:47]} dxc4 {[%clk 01:04:26]} {[%emt 00:05:32]} 10. dxc4 {[%clk 01:21:18]}
{[%emt 00:00:52]} Nc6 {[%clk 00:53:51]} {[%emt 00:11:04]} 11. b4 {[%clk
01:17:37]} {[%emt 00:04:11]} a6 {[%clk 00:50:34]} {[%emt 00:03:48]} 12. O-O
{[%clk 01:15:38]} {[%emt 00:02:29]} Bf5 {[%clk 00:48:03]} {[%emt 00:03:02]} 13.
Ba3 {[%clk 01:05:16]} {[%emt 00:10:51]} Qd3 {[%clk 00:44:44]} {[%emt 00:03:50]}
14. Rfe1 {[%clk 01:04:05]} {[%emt 00:01:41]} Rad8 {[%clk 00:38:03]} {[%emt
00:07:11]} 15. Rac1 {[%clk 00:53:25]} {[%emt 00:11:09]} Ne4 {[%clk 00:35:01]}
{[%emt 00:03:32]} 16. Qb2 {[%clk 00:51:53]} {[%emt 00:02:01]} Qd2 {[%clk
00:25:33]} {[%emt 00:09:59]} 17. b5 {[%clk 00:47:59]} {[%emt 00:04:24]} Qxb2
{[%clk 00:21:54]} {[%emt 00:04:08]} 18. Bxb2 {[%clk 00:47:59]} {[%emt
00:00:31]} Na7 {[%clk 00:20:51]} {[%emt 00:01:34]} 19. Nc3 {[%clk 00:44:20]}
{[%emt 00:04:04]} Nd2 {[%clk 00:16:56]} {[%emt 00:04:29]} 20. Nd5 {[%clk
00:42:14]} {[%emt 00:02:35]} Bg4 {[%clk 00:14:21]} {[%emt 00:03:06]} 21. bxa6
{[%clk 00:38:37]} {[%emt 00:04:07]} bxa6 {[%clk 00:13:30]} {[%emt 00:01:22]} 22.
Nxc7 {[%clk 00:38:26]} {[%emt 00:00:42]} Re7 {[%clk 00:12:51]} {[%emt
00:01:08]} 23. Nxa6 {[%clk 00:36:27]} {[%emt 00:02:30]} Nf3+ {[%clk 00:12:39]}
{[%emt 00:00:42]} 24. Bxf3 {[%clk 00:36:48]} {[%emt 00:00:08]} Bxf3 {[%clk
00:13:04]} {[%emt 00:00:06]} 25. Bc3 {[%clk 00:35:01]} {[%emt 00:02:09]} Nc6
{[%clk 00:10:49]} {[%emt 00:02:53]} 26. e4 {[%clk 00:32:54]} {[%emt 00:02:36]}
Nd4 {[%clk 00:09:09]} {[%emt 00:02:10]} 27. Kf1 {[%clk 00:32:03]} {[%emt
00:01:21]} Red7 {[%clk 00:07:45]} {[%emt 00:01:54]} 28. Re3 {[%clk 00:30:31]}
{[%emt 00:02:02]} Bh1 {[%clk 00:06:11]} {[%emt 00:02:04]} 29. Kg1 {[%clk
00:29:07]} {[%emt 00:01:54]} Nf3+ {[%clk 00:06:18]} {[%emt 00:00:23]} 30. Kxh1
{[%clk 00:29:01]} {[%emt 00:00:36]} Rd1+ {[%clk 00:06:36]} {[%emt 00:00:12]} 31.
Rxd1 {[%clk 00:29:19]} {[%emt 00:00:12]} Rxd1+ {[%clk 00:06:55]} {[%emt
00:00:11]} 32. Kg2 {[%clk 00:29:30]} {[%emt 00:00:19]} Nd4 {[%clk 00:05:05]}
{[%emt 00:02:20]} 33. c5 {[%clk 00:28:41]} {[%emt 00:01:19]} g5 {[%clk
00:05:00]} {[%emt 00:00:35]} 34. Re1 {[%clk 00:27:23]} {[%emt 00:01:47]} Rd3
{[%clk 00:03:03]} {[%emt 00:04:44]} 35. Bxd4 {[%clk 00:27:43]} Rxd4 {[%clk
00:03:20]} 36. Rc1 {[%clk 00:27:18]} Ra4 {[%clk 00:02:57]} 37. c6 {[%clk
00:26:41]} {[%emt 00:01:02]} Rxa6 {[%clk 00:03:16]} {[%emt 00:00:12]} 38. c7
{[%clk 00:27:03]} {[%emt 00:00:07]} Ra8 {[%clk 00:03:38]} {[%emt 00:00:09]} 39.
Rd1 {[%clk 00:27:26]} {[%emt 00:00:06]} Kg7 {[%clk 00:03:14]} {[%emt 00:00:55]}
40. Rd8 {[%clk 00:27:47]} {[%emt 00:00:08]} Rxd8 {[%clk 00:03:36]} {[%emt
00:00:09]} 41. cxd8=Q {[%clk 00:28:08]} {[%emt 00:00:09]} Kh7 {[%clk 00:02:48]}
{[%emt 00:01:18]} 42. Qf6 {[%clk 00:28:21]} {[%emt 00:00:16]} h5 {[%clk
00:02:42]} {[%emt 00:00:36]} 43. Qxg5 {[%clk 00:28:45]} {[%emt 00:00:06]} h4
{[%clk 00:02:34]} {[%emt 00:00:38]} 44. Qxh4+ {[%clk 00:29:09]} {[%emt
00:00:06]} Kg6 {[%clk 00:02:58]} {[%emt 00:00:07]} 45. Kf3 {[%clk 00:29:29]}
{[%emt 00:00:10]} f6 {[%clk 00:02:49]} {[%emt 00:00:39]} 46. Kg4 {[%clk
00:29:45]} {[%emt 00:00:14]} Kf7 {[%clk 00:03:05]} {[%emt 00:00:14]} 47. Kf5
{[%clk 00:29:56]} {[%emt 00:00:18]} Ke8 {[%clk 00:03:16]} {[%emt 00:00:20]} 48.
Qh7 {[%clk 00:30:09]} {[%emt 00:00:17]} Kd8 {[%clk 00:03:32]} {[%emt 00:00:14]}
49. Ke6 {[%clk 00:30:33]} {[%emt 00:00:05]} Kc8 {[%clk 00:03:53]} {[%emt
00:00:10]} 50. Kd6 {[%clk 00:30:44]} {[%emt 00:00:19]} Kb8 {[%clk 00:04:15]}
{[%emt 00:00:08]} 51. Kc6 {[%clk 00:30:55]} {[%emt 00:00:19]} Ka8 {[%clk
00:04:42]} {[%emt 00:00:03]} 52. Qb7# {[%emt 00:00:55]} 1-0

[Event "Régional Jeunes Occitanie 2024"]
[Site "L'Isle Jourdain, France"]
[Date "2024.02.21"]
[Round "2.2"]
[White "MORENO-CHABOT, Clement"]
[Black "AUTHIER, Clea"]
[Result "1-0"]
[TimeControl "1h30 + 30s/cps"]
[WhiteElo "1771"]
[BlackElo "1323"]

1. d4 {[%clk 01:30:49]} {[%emt 00:00:11]} Nf6 {[%clk 01:30:54]} {[%emt
00:00:06]} 2. c4 {[%clk 01:31:11]} {[%emt 00:00:08]} e6 {[%clk 01:31:17]}
{[%emt 00:00:07]} 3. g3 {[%clk 01:31:33]} {[%emt 00:00:08]} c5 {[%clk
01:31:29]} {[%emt 00:00:18]} 4. d5 {[%clk 01:31:17]} {[%emt 00:00:46]} d6
{[%clk 01:31:31]} {[%emt 00:00:28]} 5. Bg2 {[%clk 01:31:35]} {[%emt 00:00:12]}
Qb6 {[%clk 01:31:24]} {[%emt 00:00:36]} 6. Nc3 {[%clk 01:31:12]} {[%emt
00:00:54]} g6 {[%clk 01:31:19]} {[%emt 00:00:34]} 7. e4 {[%clk 01:28:25]}
{[%emt 00:03:17]} Bg7 {[%clk 01:29:30]} {[%emt 00:02:19]} 8. Nge2 {[%clk
01:27:18]} {[%emt 00:01:37]} O-O {[%clk 01:28:12]} {[%emt 00:01:47]} 9. O-O
{[%clk 01:21:50]} {[%emt 00:05:59]} exd5 {[%clk 01:21:44]} {[%emt 00:06:59]} 10.
cxd5 {[%clk 01:20:15]} {[%emt 00:02:05]} Re8 {[%clk 01:20:26]} {[%emt
00:01:47]} 11. Qc2 {[%clk 01:15:40]} {[%emt 00:05:05]} Nbd7 {[%clk 01:15:06]}
{[%emt 00:05:50]} 12. h3 {[%clk 01:08:55]} {[%emt 00:07:15]} a6 {[%clk
01:12:59]} {[%emt 00:02:38]} 13. Be3 {[%clk 01:07:51]} {[%emt 00:01:33]} Qd8
{[%clk 01:06:16]} {[%emt 00:07:13]} 14. a4 {[%clk 01:07:12]} {[%emt 00:01:09]}
Ne5 {[%clk 01:02:17]} {[%emt 00:04:28]} 15. f4 {[%clk 01:05:41]} {[%emt
00:02:02]} Nc4 {[%clk 01:01:05]} {[%emt 00:01:42]} 16. Bf2 {[%clk 01:05:23]}
{[%emt 00:00:48]} Bd7 {[%clk 00:59:35]} {[%emt 00:02:00]} 17. b3 {[%clk
01:03:24]} {[%emt 00:02:29]} Na5 {[%clk 00:59:47]} {[%emt 00:00:17]} 18. Rab1
{[%clk 01:02:57]} {[%emt 00:00:57]} b5 {[%clk 00:58:30]} {[%emt 00:01:48]} 19.
b4 {[%clk 01:00:21]} {[%emt 00:03:06]} cxb4 {[%clk 00:57:12]} {[%emt 00:01:47]}
20. Rxb4 {[%clk 00:59:41]} {[%emt 00:01:11]} Rc8 {[%clk 00:55:55]} {[%emt
00:01:47]} 21. Qd3 {[%clk 00:59:33]} {[%emt 00:00:37]} Nc4 {[%clk 00:51:43]}
{[%emt 00:04:42]} 22. axb5 {[%clk 00:58:38]} {[%emt 00:01:26]} axb5 {[%clk
00:48:51]} {[%emt 00:03:22]} 23. Nxb5 {[%clk 00:51:22]} {[%emt 00:07:46]} Bxb5
{[%clk 00:48:04]} {[%emt 00:01:17]} 24. Rxb5 {[%clk 00:51:25]} {[%emt
00:00:27]} Nb6 {[%clk 00:46:51]} {[%emt 00:01:43]} 25. Rxb6 {[%clk 00:51:31]}
{[%emt 00:00:24]} Qe7 {[%clk 00:45:45]} {[%emt 00:01:35]} 26. Rb4 {[%clk
00:50:28]} {[%emt 00:01:34]} Nd7 {[%clk 00:44:41]} {[%emt 00:01:33]} 27. Rb7
{[%clk 00:48:25]} {[%emt 00:02:34]} Qd8 {[%clk 00:44:53]} {[%emt 00:00:18]} 28.
Qb5 {[%clk 00:48:29]} {[%emt 00:00:26]} Nc5 {[%clk 00:43:01]} {[%emt 00:02:21]}
29. Bxc5 {[%clk 00:48:51]} {[%emt 00:00:08]} Rxc5 {[%clk 00:43:02]} {[%emt
00:00:29]} 30. Qd7 {[%clk 00:49:14]} {[%emt 00:00:07]} Qxd7 {[%clk 00:40:43]}
{[%emt 00:02:49]} 31. Rxd7 {[%clk 00:49:39]} {[%emt 00:00:06]} f5 {[%clk
00:40:33]} {[%emt 00:00:40]} 32. Rxd6 {[%clk 00:48:37]} {[%emt 00:01:31]} fxe4
{[%clk 00:40:28]} {[%emt 00:00:35]} 33. Re6 {[%clk 00:48:48]} {[%emt 00:00:19]}
Rxe6 {[%clk 00:39:41]} {[%emt 00:01:17]} 34. dxe6 {[%clk 00:49:14]} {[%emt
00:00:04]} Kf8 {[%clk 00:39:40]} {[%emt 00:00:31]} 35. Rd1 {[%clk 00:49:10]}
{[%emt 00:00:34]} Rc2 {[%clk 00:38:13]} {[%emt 00:01:57]} 36. Kf2 {[%clk
00:47:45]} {[%emt 00:01:53]} Rc4 {[%clk 00:37:26]} {[%emt 00:01:19]} 37. Rd8+
{[%clk 00:47:37]} {[%emt 00:00:38]} Ke7 {[%clk 00:37:42]} {[%emt 00:00:14]} 38.
Rd7+ {[%clk 00:48:04]} {[%emt 00:00:03]} Kf8 {[%clk 00:37:53]} {[%emt
00:00:19]} 39. Rf7+ {[%clk 00:47:51]} {[%emt 00:00:43]} Kg8 {[%clk 00:37:27]}
{[%emt 00:00:57]} 40. Rb7 {[%clk 00:48:10]} {[%emt 00:00:11]} Kf8 {[%clk
00:37:30]} {[%emt 00:00:28]} 41. Ke3 {[%clk 00:47:44]} {[%emt 00:00:55]} Rc6
{[%clk 00:37:39]} {[%emt 00:00:21]} 42. Nd4 {[%clk 00:46:17]} {[%emt 00:01:58]}
Bxd4+ {[%clk 00:37:35]} {[%emt 00:00:33]} 43. Kxd4 {[%clk 00:46:40]} {[%emt
00:00:07]} Rxe6 {[%clk 00:38:00]} {[%emt 00:00:04]} 44. Bxe4 {[%clk 00:46:55]}
{[%emt 00:00:16]} h6 {[%clk 00:37:57]} {[%emt 00:00:32]} 45. Kd5 {[%clk
00:46:53]} {[%emt 00:00:33]} Re8 {[%clk 00:37:54]} {[%emt 00:00:32]} 46. Bxg6
{[%clk 00:47:11]} {[%emt 00:00:12]} Rd8+ {[%clk 00:37:43]} {[%emt 00:00:42]} 47.
Ke6 {[%clk 00:47:35]} {[%emt 00:00:05]} Rc8 {[%clk 00:37:37]} {[%emt 00:00:37]}
48. Bf5 {[%clk 00:46:58]} {[%emt 00:01:07]} 1-0

[ePGN "0.1;DGT LiveChess/2.2.6"]